[Event "Srdja Dragasevic Memorial-A 2024"]
[Site "Cetinje"]
[Date "2024.06.29"]
[Round "9.2"]
[White "Pecurica, Milos"]
[Black "Milanovic, Danilo"]
[Result "1/2-1/2"]
[ECO "B01"]
[WhiteElo "2338"]
[BlackElo "2438"]
[Annotator "RC"]
[PlyCount "49"]
[EventDate "2024.06.23"]
[EventType "swiss"]
[EventCountry "MNE"]
[SourceTitle "playchess.com"]
[Source "ChessBase"]
[SourceQuality "1"]
[TimeControl "40/5400+30:1800+30"]

1. e4 {[%emt 0:00:05]} d5 {[%emt 0:14:51]} 2. exd5 {[%emt 0:00:07]} Qxd5 {[%emt 0:00:07]} 3. Nc3 {[%emt 0:00:06]} Qd8 {[%emt 0:00:59]} 4. d4 {[%emt 0:00:12]} Nf6 {[%emt 0:00:10]} 5. Nf3 {[%emt 0:00:42]} g6 {[%emt 0:00:53]} 6. Bc4 {[%emt 0:03:08]} Bg7 {[%emt 0:00:18]} 7. O-O {[%emt 0:00:06]} O-O {[%emt 0:00:04]} 8. Re1 {[%emt 0:04:10]} a6 {[%emt 0:03:13]} 9. Ne5 {[%emt 0:11:28]} Nbd7 {[%emt 0:08:45]} 10. Qf3 {[%emt 0:06:09]} Nb6 {[%emt 0:01:25]} 11. Bb3 {[%emt 0:04:17]} c6 {[%emt 0:03:28]} 12. Ne2 {[%emt 0:12:21]} a5 {[%emt 0:01:08]} 13. a3 {[%emt 0:02:43]} a4 {[%emt 0:03:43]} 14. Ba2 {[%emt 0:00:09]} Nbd5 {[%emt 0:00:06]} 15. Bg5 {[%emt 0:07:35]} Ne8 {[%emt 0:23:04]} 16. Bd2 {[%emt 0:10:18]} Nec7 {[%emt 0:07:07]} 17. Rad1 {[%emt 0:06:39]} Be6 {[%emt 0:07:29]} 18. c4 {[%emt 0:06:42]} Nf6 {[%emt 0:00:14]} 19. Bc3 {[%emt 0:00:48]} Nd7 {[%emt 0:04:30]} 20. Nf4 {[%emt 0:01:41]} Nxe5 {[%emt 0:00:21]} 21. dxe5 {[%emt 0:00:09]} Qc8 {[%emt 0:00:03]} 22. h3 {[%emt 0:00:54]} Bf5 {[%emt 0:02:14]} 23. g4 {[%emt 0:01:05]} Bd7 {[%emt 0:00:06]} 24. Bb4 {[%emt 0:03:04]} Re8 {[%emt 0:03:58]} 25. Qd3 {[%emt 0:02:29]} 1/2-1/2

[Event "Srdja Dragasevic Memorial-A 2024"]
[Site "Cetinje"]
[Date "2024.06.29"]
[Round "9.3"]
[White "Skvortsov, Andrei"]
[Black "Djukic, Nikola"]
[Result "1/2-1/2"]
[ECO "B21"]
[WhiteElo "2331"]
[BlackElo "2532"]
[Annotator "TA"]
[PlyCount "105"]
[EventDate "2024.06.23"]
[EventType "swiss"]
[EventCountry "MNE"]
[SourceTitle "playchess.com"]
[Source "ChessBase"]
[SourceQuality "1"]
[TimeControl "40/5400+30:1800+30"]

{[%evp 9,105,0,4,0,18,7,23,0,14,4,0,-15,-13,-21,-18,-41,0,0,10,-12,16,8,17,14,30,34,20,0,0,14,37,12,5,7,25,11,49,-10,72,62,43,37,37,33,27,21,22,21,29,29,43,25,72,72,72,86,99,107,95,94,143,143,152,150,169,140,145,145,150,116,120,103,87,73,123,68,71,50,35,32,31,22,28,0,0,0,20,0,0,0,0,0,79,79,184,8,8,8]} 1. e4 {[%emt 0:00:19]} c5 {[%emt 0:00:03]} 2. d4 {[%emt 0:00:09]} cxd4 {[%emt 0:00:07]} 3. Qxd4 {[%emt 0:00:03]} Nc6 {[%emt 0:00:09]} 4. Qd3 {[%emt 0:00:03]} g6 {[%emt 0:00:12]} 5. Nf3 {[%emt 0:00:03]} Bg7 {[%emt 0:00:07]} 6. Be2 {[%emt 0:00:04]} d6 {[%emt 0:00:40]} 7. O-O {[%emt 0:00:08]} Bg4 {[%emt 0:00:37]} 8. h3 {[%emt 0:00:16] White has an edge.} Bxf3 {[%emt 0:01:18]} 9. Bxf3 {[%emt 0:00:12]} Nf6 {[%emt 0:06:30]} 10. Nc3 {[%emt 0:01:55]} Rc8 {[%emt 0:01:15]} 11. Be2 {[%emt 0:11:14]} O-O {[%emt 0:04:19]} 12. Bg5 {[%emt 0:05:54]} Qb6 {[%emt 0:07:29]} 13. Rab1 {[%emt 0:01:04]} Qd4 {[%emt 0:04:23]} 14. Qf3 {[%emt 0:05:58]} (14. Qxd4 {simplifies} Nxd4 15. Bd3 a6 16. Rfd1) 14... Qe5 {[%emt 0:10:42]} 15. Qe3 {[%emt 0:00:48]} Nd4 {[%emt 0:03:59][%cal Bc6d4,Bd4e6,Be6c5][%mdl 32]} 16. Bd3 {[%emt 0:00:09]} Ne6 {[%emt 0:03:37]} 17. Bxf6 {[%emt 0:00:20]} Bxf6 {[%emt 0:00:55]} 18. Qxa7 {[%emt 0:00:03]} Nc5 {[%emt 0:14:13]} 19. Qb6 {[%emt 0:02:06]} Ra8 {[%emt 0:00:33]} 20. Qb4 {[%emt 0:05:17]} Rfc8 {[%emt 0:07:26]} 21. a3 {[%emt 0:01:20]} e6 {[%emt 0:04:24] Dodges Nd5} 22. Rfd1 {[%emt 0:04:45]} Be7 {[%emt 0:09:07]} 23. Bf1 {[%emt 0:02:09]} (23. Qb5 $14) 23... Bf8 {[%emt 0:02:32]} (23... Bd8 $11) 24. Re1 {[%emt 0:01:28][%cal Bd1e1,Be1e3,Be3f3][%mdl 32]} h5 {[%emt 0:01:07]} 25. Rbd1 {[%emt 0:01:34]} h4 {[%emt 0:00:15]} 26. Re3 {[%emt 0:01:30]} Bh6 {[%emt 0:00:38]} 27. Rf3 {[%emt 0:00:11]} Bf8 {[%emt 0:04:00]} 28. Qb5 {[%emt 0:03:13]} Rc7 {[%emt 0:05:29]} 29. Qc4 {[%emt 0:05:34]} Rcc8 {[%emt 0:00:06][%cal Oc5a4]} 30. Qd4 {[%emt 0:00:43]} Bg7 {[%emt 0:02:14]} (30... Qxd4 $11 {deserves consideration.} 31. Rxd4 Nd7) 31. Qxd6 $16 {[%emt 0:00:24]} Qxd6 {[%emt 0:01:40]} 32. Rxd6 {[%emt 0:00:05]} Rd8 {[%emt 0:00:05]} 33. Rxd8+ {[%emt 0:05:39]} Rxd8 {[%emt 0:00:09]} 34. b4 {[%emt 0:00:03]} Bxc3 {[%emt 0:00:13]} (34... Nd3 $142) 35. Rxc3 {[%emt 0:00:10]} ({Resist} 35. bxc5 $6 Be5 $14) 35... Nxe4 {[%emt 0:00:06][%mdl 4096] Endgame. KRB-KRN} 36. Rd3 {[%emt 0:02:56]} Rc8 {[%emt 0:01:34] [#]} 37. c4 {[%emt 0:00:11][%mdl 512]} b6 {[%emt 0:00:05]} 38. Rd4 {[%emt 0:00:29]} f5 {[%emt 0:01:28]} 39. f3 {[%emt 0:01:23]} Ng3 {[%emt 0:00:26]} 40. Kf2 {[%emt 0:00:00]} Ra8 {[%emt 0:00:00]} 41. Rd3 {[%emt 0:03:20]} e5 {[%emt 0:05:52] [#]} (41... Kf7 $142) 42. Be2 {[%emt 0:01:36]} (42. c5 $1 $16 {[%cal Rc5b6]} bxc5 43. bxc5) 42... Kf7 $14 {[%emt 0:04:54]} 43. Bd1 {[%emt 0:00:36]} e4 {[%emt 0:00:32]} 44. fxe4 {[%emt 0:01:01]} fxe4 {[%emt 0:00:05]} 45. Rc3 {[%emt 0:09:35]} Ke6 {[%emt 0:01:06]} 46. c5 {[%emt 0:00:47]} bxc5 {[%emt 0:00:24]} 47. bxc5 {[%emt 0:00:13]} Ke5 {[%emt 0:05:45] Strongly threatening ...Kd4.} 48. Be2 {[%emt 0:07:54] c6 is the strong threat.} Kd4 {[%emt 0:02:58]} 49. Rc4+ {[%emt 0:00:06]} Kd5 {[%emt 0:00:08][%cal Og3e2] Threatens to win with ...Nxe2!} 50. Rc2 {[%emt 0:01:03] c6 would now be deadly.} Rf8+ {[%emt 0:02:45]} (50... Rxa3 $2 {perishes.} 51. c6 Nf5 52. c7 $18) (50... Nf5 $11 {keeps the balance.}) 51. Ke1 $16 {[%emt 0:00:27]} Rc8 {[%emt 0:03:03]} (51... Nf5 $16) 52. Bc4+ $2 {[%emt 0:00:24]} ({White should try} 52. a4 $18) 52... Kd4 $1 $11 {[%emt 0:00:35]} 53. Bb5 {[%emt 0:05:33] Blacks defense is rewarded with a draw.   Weighted Error Value: White=0.16 (very precise) /Black=0.17 (very precise) .  Missed win:     	White=1     	---        Mistake:       	White=2     	Black=6      Inaccurate:     	White=1     	Black=3      OK:         	White=15    	Black=17     Best:        	White=3     	Black=4      Strong:       	---       	Black=1} 1/2-1/2

[Event "Srdja Dragasevic Memorial-A 2024"]
[Site "Cetinje"]
[Date "2024.06.29"]
[Round "9.4"]
[White "Mammadova, Narmin"]
[Black "Mammadov, Zaur"]
[Result "1/2-1/2"]
[ECO "D20"]
[WhiteElo "2277"]
[BlackElo "2426"]
[Annotator "RC"]
[PlyCount "23"]
[EventDate "2024.06.23"]
[EventType "swiss"]
[EventCountry "MNE"]
[SourceTitle "playchess.com"]
[Source "ChessBase"]
[SourceQuality "1"]
[TimeControl "40/5400+30:1800+30"]

1. d4 {[%emt 0:02:34]} d5 {[%emt 0:00:10]} 2. c4 {[%emt 0:00:10]} dxc4 {[%emt 0:00:06]} 3. e4 {[%emt 0:00:12]} Nf6 {[%emt 0:00:06]} 4. e5 {[%emt 0:00:23]} Nd5 {[%emt 0:00:07]} 5. Bxc4 {[%emt 0:00:05]} Nc6 {[%emt 0:00:11]} 6. Nf3 {[%emt 0:00:15]} Nb6 {[%emt 0:00:05]} 7. Bb3 {[%emt 0:00:07]} Bg4 {[%emt 0:00:07]} 8. Ng5 {[%emt 0:00:14]} Bxd1 {[%emt 0:00:07]} 9. Bxf7+ {[%emt 0:00:02]} Kd7 {[%emt 0:00:09]} 10. Be6+ {[%emt 0:00:03]} Ke8 {[%emt 0:00:07]} 11. Bf7+ {[%emt 0:00:01]} Kd7 {[%emt 0:00:08]} 12. Be6+ {[%emt 0:00:04]} 1/2-1/2

[Event "Srdja Dragasevic Memorial-A 2024"]
[Site "Cetinje"]
[Date "2024.06.29"]
[Round "9.5"]
[White "Damljanovic, Branko"]
[Black "Karthik Venkataraman"]
[Result "0-1"]
[ECO "B00"]
[WhiteElo "2364"]
[BlackElo "2590"]
[Annotator "TA"]
[PlyCount "108"]
[EventDate "2024.06.23"]
[EventType "swiss"]
[EventCountry "MNE"]
[SourceTitle "playchess.com"]
[Source "ChessBase"]
[SourceQuality "1"]
[TimeControl "40/5400+30:1800+30"]

{[%evp 24,108,76,37,25,11,75,12,9,7,16,0,25,0,0,0,0,-13,-20,-22,79,79,79,18,16,18,0,4,16,-20,97,89,97,82,143,133,152,0,0,0,0,0,0,0,0,0,0,-166,-158,-124,-131,-227,-202,-329,-352,-317,-310,-255,-242,-247,-257,-389,-252,-382,-382,-382,-382,-382,-313,-379,-379,-375,-375,-307,-238,-375,-375,-429,-425,-403,-399,-432,-413,-387,-402,-420,-420]} 1. Nf3 {[%emt 0:00:30]} b6 {[%emt 0:02:18]} 2. e4 {[%emt 0:02:31]} Bb7 {[%emt 0:00:05]} 3. Nc3 {[%emt 0:00:05]} e6 {[%emt 0:00:04]} 4. d4 {[%emt 0:00:08]} Bb4 {[%emt 0:00:04]} 5. Bd3 {[%emt 0:00:04]} Nf6 {[%emt 0:00:04]} 6. e5 {[%emt 0:02:30]} Ne4 {[%emt 0:00:43] B00: Queen's Fianchetto Defence, Nimzowitsch Defence.} 7. O-O {[%emt 0:00:03] is recently more successful than 7.Bd2.} Nxc3 {[%emt 0:02:21]} 8. bxc3 {[%emt 0:00:02]} Be7 {[%emt 0:00:07]} 9. Ne1 {[%emt 0:04:44]} c5 {[%emt 0:03:56]} 10. Qg4 {[%emt 0:03:36]} g6 {[%emt 0:00:02]} 11. Bh6 {[%emt 0:00:10]} d5 $146 {[%emt 0:11:38]} ({Predecessor:} 11... Nc6 12. Nf3 cxd4 13. cxd4 Nb4 14. Be4 Bxe4 15. Qxe4 Rc8 16. Rfc1 d5 17. exd6 Qxd6 {1-0 Dondukov,S (2320)-Radnaev,A (2008) Ulan-Ude Buryatia-ch 2013 (3)}) 12. f4 {[%emt 0:04:42]} Bc8 {[%emt 0:02:08]} 13. Nf3 {[%emt 0:01:15]} c4 {[%emt 0:00:05]} 14. Be2 {[%emt 0:00:05]} Kd7 {[%emt 0:00:36]} (14... Bf8 $11 {keeps the balance.} 15. Bg5 Be7) 15. Qh3 {[%emt 0:03:27]} (15. a4 $16) 15... Qg8 $1 $11 {[%emt 0:00:24]} 16. a4 {[%emt 1:14:38]} Nc6 {[%emt 0:00:19]} 17. g4 {[%emt 0:00:00]} Kc7 {[%emt 0:00:07]} 18. Qg3 {[%emt 0:00:00]} Bf8 {[%emt 0:00:51]} 19. Bg5 {[%emt 0:00:00]} h6 {[%emt 0:00:58]} 20. Bf6 {[%emt 0:00:00]} Bg7 {[%emt 0:00:05]} 21. Kf2 {[%emt 0:00:00]} Bxf6 {[%emt 0:00:44]} (21... Bd7 $11 {remains equal.}) 22. exf6 $16 {[%emt 0:00:00]} Kb7 {[%emt 0:00:06]} 23. Rfb1 {[%emt 0:00:00]} (23. a5 $16 b5 24. Rfb1) 23... a5 $1 $11 {[%emt 0:01:36]} 24. Rb2 {[%emt 0:00:00]} Qd8 {[%emt 0:00:31]} 25. Rab1 {[%emt 0:00:00]} Ra6 $1 {[%emt 0:00:05]} 26. g5 {[%emt 0:00:00]} (26. Nd2 $5) 26... h5 {[%emt 0:00:15]} (26... hxg5 $11 27. fxg5 Qc7) 27. Nd2 $1 $16 {[%emt 0:00:00]} Qc7 {[%emt 0:01:34]} 28. Nxc4 {[%emt 0:00:00]} (28. Bxc4 {is interesting.} dxc4 29. Nxc4 Rd8 30. Rxb6+ Rxb6 31. Rxb6+ Qxb6 32. Nxb6 Kxb6 33. Qe3) 28... dxc4 {[%emt 0:00:05]} ({Black should try} 28... h4 29. Qe3 dxc4) 29. Bxc4 $16 {[%emt 0:00:00]} Ka7 {[%emt 0:00:40]} 30. Bxa6 $2 {[%emt 0:00:00]} (30. f5 $16 e5 31. Bxa6) 30... Bxa6 $11 {[%emt 0:00:04]} 31. f5 {[%emt 0:00:00]} (31. Rxb6 $5 Nb4 $8 32. Rxa6+ Nxa6 33. Qe3 $11) 31... Qxg3+ {[%emt 0:01:21]} 32. hxg3 {[%emt 0:00:00]} exf5 {[%emt 0:00:05]} 33. Rxb6 {[%emt 0:00:00]} Rc8 {[%emt 0:00:04]} 34. R6b2 {[%emt 0:00:00]} Re8 {[%emt 0:14:52]} 35. Re1 $2 {[%emt 0:00:00] [#]} (35. Rb6 $11 {and White stays safe.} Rc8 36. R6b3) 35... Rxe1 $1 $19 {[%emt 0:00:09]} 36. Kxe1 {[%emt 0:00:00]} Bc4 {[%emt 0:00:05]} 37. Kf2 {[%emt 0:00:00] [#]} (37. d5 $17 Bxd5 38. Kd2) 37... Nd8 $1 $19 {[%emt 0:00:13]} 38. d5 {[%emt 0:00:00]} (38. Ke3 {was necessary.} Ne6 39. d5 Bxd5 (39... Nxg5 $2 40. Kd4 $18) 40. Rb5) 38... Bxd5 $19 {[%emt 0:00:26]} 39. Rb5 {[%emt 0:00:00]} Bc6 {[%emt 0:01:30]} 40. Rxa5+ {[%emt 0:00:00]} Kb6 {[%emt 0:00:00]} 41. Re5 {[%emt 0:00:00]} Bxa4 {[%emt 0:00:20]} 42. Re7 {[%emt 0:00:00]} (42. c4 $142) 42... Kc6 {[%emt 0:00:20]} ({And not} 42... Bxc2 43. Rd7 Nc6 (43... Ne6 $2 44. Rd6+ Kc5 45. Rxe6 $18) 44. Rxf7 $11) 43. Ke3 {[%emt 0:00:00]} (43. c4 $142) 43... Bb5 $19 {[%emt 0:08:29]} (43... Bxc2 $2 44. c4 $19) 44. Re5 {[%emt 0:02:37]} Bc4 {[%emt 0:02:08]} ({Wrong is} 44... Ne6 $2 45. Rxe6+ Kc5 46. Re5+ (46. Re7 f4+ 47. gxf4 Bc4 $18) 46... Kc6 47. Re7 $18) 45. Kd4 {[%emt 0:00:15]} Be6 {[%emt 0:00:05]} 46. c4 {[%emt 0:05:26]} Kd6 {[%emt 0:00:14]} 47. c5+ {[%emt 0:00:28]} Kd7 {[%emt 0:00:06]} 48. Re1 {[%emt 0:01:18]} Nc6+ {[%emt 0:00:13]} 49. Kd3 {[%emt 0:00:09]} (49. Kc3 $142) 49... Bd5 $19 {[%emt 0:00:26]} 50. Ke3 {[%emt 0:01:44]} Be4 {[%emt 0:02:13]} 51. Rd1+ {[%emt 0:01:14]} Kc7 {[%emt 0:00:08]} 52. c3 {[%emt 0:03:02]} Ne5 {[%emt 0:01:34]} 53. Ra1 {[%emt 0:02:17]} Nd7 {[%emt 0:01:05]} 54. Ra7+ {[%emt 0:02:35]} Bb7 {[%emt 0:00:06]} 0-1

[Event "Srdja Dragasevic Memorial-A 2024"]
[Site "Cetinje"]
[Date "2024.06.29"]
[Round "9.6"]
[White "Engin, Onur Cinar"]
[Black "Tadic, Stefan"]
[Result "0-1"]
[ECO "C50"]
[WhiteElo "2114"]
[BlackElo "2421"]
[Annotator "RC"]
[PlyCount "88"]
[EventDate "2024.06.23"]
[EventType "swiss"]
[EventCountry "MNE"]
[SourceTitle "playchess.com"]
[Source "ChessBase"]
[SourceQuality "1"]
[TimeControl "40/5400+30:1800+30"]

1. e4 {[%emt 0:00:04]} e5 {[%emt 0:00:12]} 2. Nf3 {[%emt 0:00:07]} Nc6 {[%emt 0:00:05]} 3. Bc4 {[%emt 0:00:05]} Nf6 {[%emt 0:00:05]} 4. d3 {[%emt 0:00:45]} Bc5 {[%emt 0:00:05]} 5. Bg5 {[%emt 0:01:27]} h6 {[%emt 0:07:49]} 6. Bh4 {[%emt 0:00:25]} Be7 {[%emt 0:00:55]} 7. Bg3 {[%emt 0:08:04]} d6 {[%emt 0:00:52]} 8. a4 {[%emt 0:00:27]} O-O {[%emt 0:01:15]} 9. h3 {[%emt 0:01:00]} Be6 {[%emt 0:04:40]} 10. Bxe6 {[%emt 0:00:53]} fxe6 {[%emt 0:00:03]} 11. O-O {[%emt 0:00:29]} Qe8 {[%emt 0:08:15]} 12. c3 {[%emt 0:04:06]} b6 {[%emt 0:00:10]} 13. Qb3 {[%emt 0:02:08]} Qd7 {[%emt 0:13:30]} 14. Nbd2 {[%emt 0:01:32]} Nh5 {[%emt 0:00:08]} 15. d4 {[%emt 0:07:07]} exd4 {[%emt 0:03:35]} 16. Nxd4 {[%emt 0:06:39]} Nxg3 {[%emt 0:03:30]} 17. fxg3 {[%emt 0:00:29]} Nxd4 {[%emt 0:01:23]} 18. cxd4 {[%emt 0:00:05]} d5 {[%emt 0:00:03]} 19. Rfe1 {[%emt 0:13:11]} c5 {[%emt 0:09:59]} 20. Nf3 {[%emt 0:03:12]} Bf6 {[%emt 0:11:12]} 21. Rad1 {[%emt 0:07:40]} c4 {[%emt 0:02:11]} 22. Qc2 {[%emt 0:00:34]} b5 {[%emt 0:02:22]} 23. exd5 {[%emt 0:02:30]} exd5 {[%emt 0:00:42]} 24. Ne5 {[%emt 0:01:10]} Bxe5 {[%emt 0:06:43]} 25. dxe5 {[%emt 0:00:43]} Rfe8 {[%emt 0:00:04]} 26. axb5 {[%emt 0:09:06]} Qxb5 {[%emt 0:00:05]} 27. Qg6 {[%emt 0:07:21]} Rad8 {[%emt 0:02:32]} 28. e6 {[%emt 0:01:43]} Re7 {[%emt 0:00:04]} 29. Qf5 {[%emt 0:08:18]} Qb6+ {[%emt 0:04:03]} 30. Kh2 {[%emt 0:00:06]} d4 {[%emt 0:00:02]} 31. Re4 {[%emt 0:01:39]} d3 {[%emt 0:14:26]} 32. Rxc4 {[%emt 0:02:47]} Qxe6 {[%emt 0:02:42]} 33. Qxe6+ {[%emt 0:02:16]} Rxe6 {[%emt 0:00:01]} 34. Rc3 {[%emt 0:01:14]} d2 {[%emt 0:01:09]} 35. Rc2 {[%emt 0:00:18]} Re2 {[%emt 0:00:25]} 36. b3 {[%emt 0:02:08]} a5 {[%emt 0:01:46]} 37. Ra2 {[%emt 0:01:24]} Rd5 {[%emt 0:00:01]} 38. Ra4 {[%emt 0:02:43]} Re1 {[%emt 0:01:14]} 39. Raa1 {[%emt 0:00:07]} Rde5 {[%emt 0:00:16]} 40. b4 {[%emt 0:00:00]} a4 {[%emt 0:00:00]} 41. b5 {[%emt 0:02:12]} a3 {[%emt 0:08:25]} 42. b6 {[%emt 0:01:59]} Rxd1 {[%emt 0:00:18]} 43. Rxd1 {[%emt 0:00:03]} a2 {[%emt 0:00:04]} 44. b7 {[%emt 0:03:03]} Re8 {[%emt 0:00:30]} 0-1

[Event "Srdja Dragasevic Memorial-A 2024"]
[Site "Cetinje"]
[Date "2024.06.29"]
[Round "9.7"]
[White "Sukovic, Andrej"]
[Black "Yaksin, Oleg"]
[Result "1-0"]
[ECO "B67"]
[WhiteElo "2350"]
[BlackElo "2389"]
[Annotator "RC"]
[PlyCount "83"]
[EventDate "2024.06.23"]
[EventType "swiss"]
[EventCountry "MNE"]
[SourceTitle "playchess.com"]
[Source "ChessBase"]
[SourceQuality "1"]
[TimeControl "40/5400+30:1800+30"]

1. e4 {[%emt 0:10:17]} c5 {[%emt 0:00:06]} 2. Nf3 {[%emt 0:00:05]} d6 {[%emt 0:00:08]} 3. d4 {[%emt 0:00:06]} cxd4 {[%emt 0:00:03]} 4. Nxd4 {[%emt 0:00:03]} Nf6 {[%emt 0:00:06]} 5. Nc3 {[%emt 0:00:06]} Nc6 {[%emt 0:00:06]} 6. Bg5 {[%emt 0:00:03]} e6 {[%emt 0:01:21]} 7. Qd2 {[%emt 0:00:07]} a6 {[%emt 0:00:47]} 8. O-O-O {[%emt 0:00:09]} Bd7 {[%emt 0:00:15]} 9. Kb1 {[%emt 0:00:08]} Be7 {[%emt 0:03:40]} 10. f3 {[%emt 0:00:35]} Rc8 {[%emt 0:08:48]} 11. Nxc6 {[%emt 0:00:31]} Rxc6 {[%emt 0:00:47]} 12. h4 {[%emt 0:00:07]} b5 {[%emt 0:06:23]} 13. Ne2 {[%emt 0:00:29]} b4 {[%emt 0:19:54]} 14. Nd4 {[%emt 0:08:09]} Rb6 {[%emt 0:04:04]} 15. Be3 {[%emt 0:04:11]} a5 {[%emt 0:05:02]} 16. g4 {[%emt 0:06:04]} Rb7 {[%emt 0:01:31]} 17. Ba6 {[%emt 0:08:35]} Rb8 {[%emt 0:02:14]} 18. Be2 {[%emt 0:06:00]} g6 {[%emt 0:04:31]} 19. Bd3 {[%emt 0:06:52]} e5 {[%emt 0:06:38]} 20. Ne2 {[%emt 0:00:10]} Be6 {[%emt 0:08:25]} 21. g5 {[%emt 0:08:05]} Nh5 {[%emt 0:00:01]} 22. f4 {[%emt 0:00:10]} Qd7 {[%emt 0:00:32]} 23. Rhf1 {[%emt 0:03:44]} exf4 {[%emt 0:04:22]} 24. Bd4 {[%emt 0:01:19]} Rf8 {[%emt 0:02:40]} 25. Nxf4 {[%emt 0:02:43]} Nxf4 {[%emt 0:00:08]} 26. Qxf4 {[%emt 0:01:46]} Qc6 {[%emt 0:01:19]} 27. Bg7 {[%emt 0:09:05]} Rg8 {[%emt 0:01:07]} 28. Bf6 {[%emt 0:00:06]} Qc5 {[%emt 0:02:43]} 29. Bd4 {[%emt 0:02:30]} Qc6 {[%emt 0:01:06]} 30. Bf6 {[%emt 0:03:38]} Bxf6 {[%emt 0:02:40]} 31. Qxf6 {[%emt 0:00:13]} Qc5 {[%emt 0:00:29]} 32. b3 {[%emt 0:04:02]} Rc8 {[%emt 0:03:56]} 33. Rd2 {[%emt 0:02:24]} Qe5 {[%emt 0:02:53]} 34. Qf2 {[%emt 0:01:34]} Kf8 {[%emt 0:05:04]} 35. Bc4 {[%emt 0:04:47]} Bxc4 {[%emt 0:02:45]} 36. bxc4 {[%emt 0:00:05]} Rc7 {[%emt 0:00:00]} 37. Rd5 {[%emt 0:00:16]} Qc3 {[%emt 0:01:43]} 38. e5 {[%emt 0:03:08]} Qxc4 {[%emt 0:00:35]} 39. Rxd6 {[%emt 0:02:45]} Ke8 {[%emt 0:00:27]} 40. Rfd1 {[%emt 0:00:00]} Rc8 {[%emt 0:00:00]} 41. e6 {[%emt 0:06:50]} Rg7 {[%emt 0:05:59]} 42. e7 {[%emt 0:00:27]} 1-0

[Event "Srdja Dragasevic Memorial-A 2024"]
[Site "Cetinje"]
[Date "2024.06.29"]
[Round "9.8"]
[White "Vujovic, Savo"]
[Black "Kalezic, Blazo"]
[Result "1/2-1/2"]
[ECO "E07"]
[WhiteElo "2230"]
[BlackElo "2398"]
[Annotator "RC"]
[PlyCount "71"]
[EventDate "2024.06.23"]
[EventType "swiss"]
[EventCountry "MNE"]
[SourceTitle "playchess.com"]
[Source "ChessBase"]
[SourceQuality "1"]
[TimeControl "40/5400+30:1800+30"]

1. d4 {[%emt 0:06:21]} d5 {[%emt 0:00:13]} 2. c4 {[%emt 0:00:07]} c6 {[%emt 0:00:08]} 3. Nf3 {[%emt 0:00:07]} Nf6 {[%emt 0:00:06]} 4. Nc3 {[%emt 0:00:06]} e6 {[%emt 0:00:11]} 5. g3 {[%emt 0:00:07]} Nbd7 {[%emt 0:03:04]} 6. Bg2 {[%emt 0:01:02]} dxc4 {[%emt 0:01:47]} 7. e4 {[%emt 0:02:19]} Be7 {[%emt 0:00:42]} 8. O-O {[%emt 0:01:49]} O-O {[%emt 0:01:11]} 9. Bf4 {[%emt 0:03:51]} Bb4 {[%emt 0:09:08]} 10. Nd2 {[%emt 0:16:15]} Nb6 {[%emt 0:06:54]} 11. a3 {[%emt 0:11:50]} Be7 {[%emt 0:00:43]} 12. Be3 {[%emt 0:02:56]} e5 {[%emt 0:03:16]} 13. dxe5 {[%emt 0:02:17]} Ng4 {[%emt 0:00:12]} 14. Bxb6 {[%emt 0:06:18]} axb6 {[%emt 0:01:54]} 15. Nxc4 {[%emt 0:00:12]} b5 {[%emt 0:00:09]} 16. Nd6 {[%emt 0:04:21]} Nxe5 {[%emt 0:00:26]} 17. Nxc8 {[%emt 0:00:04]} Rxc8 {[%emt 0:05:20]} 18. Qh5 {[%emt 0:02:04]} Bf6 {[%emt 0:08:27]} 19. Bh3 {[%emt 0:07:12]} g6 {[%emt 0:07:39]} 20. Qe2 {[%emt 0:00:22]} Ra8 {[%emt 0:02:29]} 21. f4 {[%emt 0:06:38]} Nc4 {[%emt 0:04:05]} 22. e5 {[%emt 0:00:12]} Bg7 {[%emt 0:08:01]} 23. Rfd1 {[%emt 0:02:58]} Qb6+ {[%emt 0:01:54]} 24. Kh1 {[%emt 0:00:06]} Rfd8 {[%emt 0:05:07]} 25. Ne4 {[%emt 0:01:17]} Qe3 {[%emt 0:00:46]} 26. Qxe3 {[%emt 0:00:42]} Nxe3 {[%emt 0:00:07]} 27. Rxd8+ {[%emt 0:00:21]} Rxd8 {[%emt 0:00:08]} 28. Nd6 {[%emt 0:00:46]} Bf8 {[%emt 0:04:42]} 29. Re1 {[%emt 0:02:53]} Bxd6 {[%emt 0:02:34]} 30. Rxe3 {[%emt 0:01:14]} Bc5 {[%emt 0:00:43]} 31. Re2 {[%emt 0:00:08]} Kf8 {[%emt 0:01:48]} 32. Bg4 {[%emt 0:02:08]} Ke7 {[%emt 0:04:25]} 33. Kg2 {[%emt 0:01:12]} b4 {[%emt 0:03:33]} 34. axb4 {[%emt 0:00:32]} Bxb4 {[%emt 0:00:07]} 35. Rc2 {[%emt 0:00:21]} Rd2+ {[%emt 0:01:04]} 36. Rxd2 {[%emt 0:00:10]} 1/2-1/2